bitfinex/quotes_ETHUSD_20240811
["timestamp","ask_amount","ask_price","bid_price","bid_amount"]
[1723338407520,0.05133633,2625.7,2625.2,5.572771]
[1723338407725,0.05133633,2625.7,2625.4,2.66625]
[1723338407924,8.0076,2626.1,2625.4,2.66625]
[1723338408236,0.05135595,2625.6,2625.3,2.66628]
[1723338408437,8.0076,2626.1,2625.4,2.66625]
[1723338408637,0.05133328,2625.5,2625.4,2.66625]
[1723338408802,8.0076,2626.1,2625.4,2.66625]
[1723338409004,0.05133328,2625.5,2625.3,2.66628]
[1723338409207,3.0,2625.9,2625.3,2.66628]
[1723338409403,0.05119564,2625.4,2625.3,2.66628]
[1723338409629,3.0,2625.9,2625.3,2.66628]
[1723338409939,0.0512863,2625.8,2625.4,0.506598]
[1723338411991,2.342,2626.3,2625.6,5.06574]
[1723338412145,0.05119048,2625.7,2625.6,5.06574]
[1723338412345,2.342,2626.3,2625.7,2.66587]
[1723338412747,0.05130377,2626.2,2625.7,2.66587]
[1723338413485,0.05130377,2626.2,2626.0,2.66563]
[1723338413648,0.05130377,2626.2,2626.0,2.932193]
[1723338413975,12.3071,2626.6,2626.0,2.932193]
[1723338414179,0.05135547,2626.1,2626.0,2.932193]
[1723338414478,12.3071,2626.6,2626.0,5.370393]
[1723338414643,12.3071,2626.6,2626.1,0.5370393]
[1723338415042,3.0,2626.5,2626.0,2.704763]
[1723338415298,5.66521,2626.5,2626.0,0.266563]
[1723338415456,5.66521,2626.5,2625.8,2.66582]
[1723338415457,5.6652,2626.5,2625.7,2.4382]
[1723338415775,2.66543,2626.3,2625.7,2.4382]
[1723338416479,5.6652,2626.5,2625.9,2.66573]
[1723338416676,5.6652,2626.5,2625.7,7.77002]
[1723338416885,2.66537,2626.3,2625.7,5.10409]
[1723338417452,8.33042,2626.5,2625.8,2.66584]
[1723338417652,5.6652,2626.5,2625.7,5.10409]
[1723338418176,5.6652,2626.5,2625.9,2.66566]
[1723338418383,3.0,2626.5,2625.9,2.66566]
[1723338418581,3.0,2626.5,2626.1,2.66548]
[1723338418757,3.0,2626.5,2626.1,2.4382]
[1723338419075,2.66497,2626.7,2626.1,2.4382]
[1723338419281,3.0,2626.6,2626.1,2.4382]
[1723338420081,3.0,2626.6,2626.2,2.66543]
[1723338424386,3.0,2626.6,2626.2,3.442349]
[1723338424784,5.03269,2626.9,2626.2,3.442349]
[1723338425093,3.0,2626.8,2626.2,3.442349]
[1723338425969,3.0,2626.8,2626.4,2.66522]
[1723338426494,3.0,2626.8,2626.5,2.66513]
[1723338426659,5.66469,2627.0,2626.4,2.66522]
[1723338427360,2.66475,2626.9,2626.4,2.66522]
[1723338427558,3.0,2627.0,2626.1,2.4382]
[1723338427559,2.665,2626.7,2626.1,2.4382]
[1723338427794,3.0,2627.0,2625.5,12.36113]
[1723338427795,2.3679,2626.6,2625.8,2.4382]
[1723338427970,2.66521,2626.5,2625.9,2.9095]
[1723338428172,2.66521,2626.5,2625.9,5.57519]
[1723338428775,0.05186582,2626.4,2625.9,2.9095]
[1723338429116,0.05186582,2626.4,2626.0,2.66565]
[1723338429608,0.05186582,2626.4,2626.2,2.4382]
[1723338429900,3.0,2626.6,2626.3,5.33062]
[1723338430054,5.66468,2627.0,2626.3,2.66527]
[1723338430503,8.32938,2627.0,2626.4,2.66523]
[1723338431016,8.32938,2627.0,2626.3,2.66527]
[1723338431418,2.66476,2626.9,2626.3,2.66527]
[1723338431628,3.0,2626.8,2626.3,2.66527]
[1723338431947,5.66487,2626.8,2626.2,5.10361]
[1723338432219,2.3679,2626.7,2626.0,2.66564]
[1723338432407,5.03292,2626.7,2626.2,2.66543]
[1723338432607,3.0,2626.6,2626.2,2.66543]
[1723338433122,3.0,2626.6,2626.0,3.176024]
[1723338433495,5.66506,2626.6,2626.0,3.176024]
[1723338433699,5.66506,2626.6,2626.0,5.841614]
[1723338434719,2.66532,2626.4,2625.7,2.6659]
[1723338434918,2.66552,2626.2,2625.4,2.6662]
[1723338435085,2.66562,2626.1,2625.5,5.06119]
[1723338435289,2.66562,2626.1,2625.6,0.772739]
[1723338437613,3.0,2626.0,2625.5,5.06119]
[1723338438192,2.66577,2625.9,2625.3,2.66636]
[1723338439998,5.66572,2626.0,2625.3,2.66636]
[1723338440223,5.66572,2626.0,2625.4,3.172336]
[1723338440823,2.66576,2625.9,2625.4,0.506146]
[1723338441196,5.66572,2626.0,2625.4,0.506146]
[1723338441796,8.33144,2626.0,2625.4,0.506146]
[1723338442014,5.66572,2626.0,2625.4,0.506146]
[1723338442625,8.33144,2626.0,2625.4,0.506146]
[1723338442828,5.66572,2626.0,2625.4,0.506146]
[1723338443236,5.66572,2626.0,2625.4,3.172326]
[1723338443847,0.04966664,2625.9,2625.5,2.66608]
[1723338444147,0.04966664,2625.9,2625.5,3.2499206]
[1723338444524,5.66556,2626.1,2625.5,3.2499206]
[1723338444725,3.0,2626.1,2625.6,5.06113]
[1723338444927,7.3,2626.2,2625.8,2.66576]
[1723338445127,0.0496893,2626.0,2625.9,5.327346]
[1723338445321,7.3,2626.2,2626.0,2.66561]
[1723338445521,2.66509,2626.6,2626.0,2.66561]
[1723338446324,2.66509,2626.6,2626.0,3.4649146]
[1723338446524,2.66509,2626.6,2626.0,3.4648846]
[1723338446525,3.0,2626.5,2626.0,3.4648846]
[1723338448058,3.0,2626.5,2626.1,2.66552]
[1723338448241,5.665,2626.7,2626.1,2.66552]
[1723338448842,5.665,2626.7,2626.0,3.4648846]
[1723338449031,2.66516,2626.5,2626.0,3.4648846]
[1723338449231,3.0,2626.4,2626.0,0.7993046]
[1723338449426,3.0,2626.4,2625.9,2.3951]
[1723338450374,3.0,2626.4,2626.0,2.66562]
[1723338450672,3.0,2626.5,2626.0,2.66562]
[1723338451167,3.0,2626.5,2626.0,2.66565]
[1723338451334,5.66505,2626.6,2626.1,2.66553]
[1723338451738,5.66505,2626.6,2626.0,6.103879]
[1723338454873,5.66505,2626.6,2626.1,2.66554]
[1723338455243,5.66505,2626.6,2626.1,0.75537367]
[1723338456466,2.4617,2627.5,2626.2,2.47445052]
[1723338456646,2.66424,2627.4,2626.9,2.3983]
[1723338456842,2.66424,2627.4,2627.0,0.23983]
[1723338457054,5.32855,2627.4,2626.9,2.3983]
[1723338457380,2.66424,2627.4,2626.9,2.3983]
[1723338457548,5.32854,2627.4,2626.9,2.3983]
[1723338457745,2.66424,2627.4,2626.9,2.3983]
[1723338458267,9.96408,2627.6,2626.9,2.3983]
[1723338458474,9.96408,2627.6,2626.9,5.569275]
[1723338458674,2.66418,2627.5,2626.9,5.569275]
[1723338458874,0.04692236,2627.5,2627.0,2.66462]
[1723338460397,3.04692236,2627.5,2627.0,2.66462]
[1723338460698,2.66426,2627.4,2627.0,0.8234025]
[1723338460994,2.66446,2627.2,2626.7,2.3983]
[1723338461165,2.66446,2627.2,2626.4,2.66518]
[1723338461166,2.66446,2627.2,2626.4,5.06348]
[1723338461890,2.6647,2627.0,2626.5,0.506348]
[1723338462181,2.6649,2626.8,2626.4,2.3983]
[1723338462387,2.6649,2626.8,2626.1,2.3983]
[1723338462688,0.04695,2626.7,2626.1,2.3983]
[1723338462898,0.04695,2626.7,2626.2,2.90521]
[1723338463879,0.04695,2626.7,2626.3,2.66534]
[1723338464284,3.0,2626.9,2626.3,2.66534]
[1723338464482,0.04683352,2626.6,2626.3,2.66534]
[1723338464684,3.0,2626.9,2626.4,3.222285]
[1723338464857,0.04681418,2626.5,2626.4,5.3304]
[1723338465055,3.0,2626.9,2626.5,2.66514]
[1723338465577,3.0,2626.9,2626.3,2.66526]
[1723338465749,3.0,2626.9,2626.4,2.955749]
[1723338466653,2.4617,2627.1,2626.4,2.955749]
[1723338466849,2.4617,2627.1,2626.5,5.06338]
[1723338467275,5.12623,2627.1,2626.5,5.06338]
[1723338467483,3.0,2627.0,2626.5,5.8652929]
[1723338468057,5.66465,2627.0,2626.5,3.2002129]
[1723338468463,5.66465,2627.0,2626.5,5.8653529]
[1723338469588,5.66465,2627.0,2626.5,3.2002129]
[1723338469977,5.66465,2627.0,2626.5,0.8019129]
[1723338470290,2.66493,2626.8,2626.2,2.90525]
[1723338470493,2.4617,2626.7,2626.2,2.90525]
[1723338470858,5.12666,2626.7,2626.2,2.90525]
[1723338472498,2.4617,2626.7,2626.2,2.90525]
[1723338472705,2.4617,2626.7,2626.3,0.290525]
[1723338473230,3.0,2627.0,2626.6,2.665]
[1723338473431,3.0,2627.1,2626.7,2.66487]
[1723338473575,9.7617,2627.3,2626.7,2.66487]
[1723338473576,3.0,2627.2,2626.7,2.66487]
[1723338473777,0.04696748,2627.1,2626.6,2.665]
[1723338474008,0.04696748,2627.1,2626.6,3.437849]
[1723338474187,0.04696748,2627.1,2626.6,3.437819]
[1723338474403,0.04696748,2627.1,2626.7,2.66491]
[1723338474799,0.04696748,2627.1,2626.8,2.66477]
[1723338475011,0.04696748,2627.1,2626.8,3.2750289]
[1723338475218,0.04696748,2627.1,2627.0,2.66463]
[1723338475421,2.3949,2627.6,2627.0,2.66463]
[1723338475720,2.71134571,2627.5,2627.0,2.66463]
[1723338475876,2.71134571,2627.5,2626.8,8.3786989]
[1723338476073,2.71134571,2627.5,2626.9,0.83786989]
[1723338476701,3.0,2627.4,2626.9,0.83786989]
[1723338477070,0.04717044,2627.3,2626.9,0.83786989]
[1723338477274,0.04717044,2627.3,2626.9,3.50259989]
[1723338477519,0.04717044,2627.3,2627.0,2.6646]
[1723338477687,0.04717044,2627.3,2627.1,0.35024699]
[1723338477888,0.04717044,2627.3,2627.1,3.01470699]
[1723338478088,2.3949,2627.6,2627.1,3.01470699]
[1723338478594,0.04721571,2627.5,2627.1,3.01470699]
[1723338479380,0.04721571,2627.5,2627.2,2.66441]
[1723338479592,0.04721571,2627.5,2627.1,0.35024699]
[1723338480406,0.04721571,2627.5,2627.1,3.01476699]
[1723338480611,3.04721571,2627.5,2627.1,3.01476699]
[1723338480854,3.04721571,2627.5,2626.8,2.66476]
[1723338481140,2.66439,2627.3,2626.8,2.66483]
[1723338481647,0.04715044,2627.2,2626.8,2.66483]
[1723338481799,2.66439,2627.3,2626.8,2.66483]
[1723338481995,0.04715044,2627.2,2626.9,2.6647]
[1723338482213,2.3949,2627.4,2627.1,2.66451]
[1723338482214,3.0,2627.4,2627.1,2.66451]
[1723338482521,0.04717639,2627.3,2626.9,2.931133]
[1723338482705,0.04717639,2627.3,2626.8,2.66477]
[1723338482909,2.66429,2627.4,2626.8,2.66477]
[1723338483163,0.04715375,2627.2,2626.8,2.66477]
[1723338483460,0.04713111,2627.1,2626.8,2.66476]
[1723338483611,5.05919,2627.4,2626.8,3.441625]
[1723338483955,0.04717308,2627.3,2626.8,3.441625]
[1723338484653,0.04717308,2627.3,2626.8,0.776865]
[1723338484654,2.71156308,2627.3,2626.8,0.776865]
[1723338486453,2.71156308,2627.3,2626.7,2.66488]
[1723338487262,0.04717308,2627.3,2626.5,5.10402]
[1723338487464,0.04717308,2627.3,2626.3,0.290525]
[1723338487465,2.3949,2627.0,2626.4,0.07614233]
[1723338487695,0.04727732,2626.9,2626.6,2.66502]
[1723338488007,5.6645,2627.2,2626.5,2.66505]
[1723338488308,0.04731912,2627.1,2626.5,2.66505]
[1723338488460,0.04731912,2627.1,2626.5,5.33011]
[1723338488663,0.04731912,2627.1,2626.5,5.33013]
[1723338488862,0.04731912,2627.1,2626.6,3.198033]
[1723338489156,0.04731912,2627.1,2626.5,2.66505]
[1723338489869,0.04731912,2627.1,2626.3,5.10423]
[1723338489870,2.66465,2627.0,2626.3,7.76949]
[1723338490070,2.44217384,2626.9,2626.3,7.76949]
[1723338490492,2.44217384,2626.9,2626.4,2.66521]
[1723338492397,2.44217384,2626.9,2626.3,5.10416]
[1723338492595,2.44217384,2626.9,2626.4,0.510416]
[1723338493503,2.44217384,2626.9,2626.3,5.10416]
[1723338493688,5.44217384,2626.9,2626.3,7.76943]
[1723338493878,5.44217384,2626.9,2626.3,5.10416]
[1723338494079,8.10693384,2626.9,2626.4,2.66523]
[1723338494396,3.04727384,2626.9,2626.5,2.66507]
[1723338494700,2.71207384,2626.9,2626.2,2.66537]
[1723338494886,2.71207384,2626.9,2626.0,5.05477]
[1723338494887,2.66501,2626.7,2626.0,5.05477]
[1723338495097,2.3467,2626.4,2625.9,2.66573]
[1723338495395,0.04713796,2626.3,2625.8,2.66583]
[1723338495595,2.71249796,2626.3,2625.8,2.66583]
[1723338496072,0.04713796,2626.3,2625.8,3.437933]
[1723338496275,0.04713796,2626.3,2625.8,3.437883]
[1723338496590,0.04713796,2626.3,2626.2,2.66544]
[1723338496780,5.3467,2626.8,2626.2,2.66544]
[1723338497125,0.04698483,2626.7,2626.2,3.437456]
[1723338499435,0.04698483,2626.7,2626.3,2.66525]
[1723338499634,3.0,2626.8,2626.3,2.66525]
[1723338499838,0.04674457,2626.7,2626.3,2.66525]
[1723338499994,3.0,2626.8,2626.3,3.01659149]
[1723338500348,0.04674457,2626.7,2626.3,3.01659149]
[1723338500834,0.04675327,2626.6,2626.3,3.01659149]
[1723338501137,3.0,2626.8,2626.3,3.01659149]
[1723338501308,0.04672731,2626.5,2626.4,0.30165915]
[1723338501510,3.0,2626.8,2626.4,0.30165915]
[1723338501706,0.04672136,2626.5,2626.1,5.33095]
[1723338502024,2.66496,2626.7,2626.1,2.66547]
[1723338502025,0.04673056,2626.4,2626.1,2.66547]
[1723338502194,2.66496,2626.7,2626.1,2.66547]
[1723338502530,0.04677255,2626.6,2626.1,2.66547]
[1723338502734,0.04677255,2626.6,2626.2,0.505467]
[1723338503122,0.04677255,2626.6,2626.2,3.170907]
[1723338504398,3.0,2626.8,2626.3,5.33062]
[1723338504697,0.04675321,2626.5,2626.4,2.66524]
[1723338505032,0.0467499,2626.5,2626.2,2.66535]
[1723338505338,3.0,2626.8,2626.3,2.66534]
[1723338505541,3.0,2626.8,2626.5,2.66507]
[1723338506055,5.3467,2627.0,2626.5,2.66507]
[1723338506356,5.3467,2627.0,2626.5,3.437006]
[1723338506556,3.0,2627.0,2626.5,3.437006]
[1723338510855,2.66475,2626.9,2626.5,0.771956]
[1723338511054,2.66475,2626.9,2626.4,2.3892]
[1723338511425,2.665,2626.7,2626.1,2.66552]
[1723338513842,2.665,2626.7,2626.1,5.33101]
[1723338514169,2.665,2626.7,2626.1,2.66549]
[1723338515339,2.665,2626.7,2626.1,5.33097]
[1723338515545,2.665,2626.7,2626.2,0.772017]
[1723338515761,2.665,2626.7,2626.2,3.437437]
[1723338516668,3.0,2627.0,2626.3,2.3081]
[1723338516845,3.0,2627.0,2626.5,2.6651]
[1723338517759,3.978,2627.0,2626.5,2.6651]
[1723338518266,6.64265,2627.0,2626.5,2.6651]
[1723338518637,3.978,2627.0,2626.5,2.6651]
[1723338518837,0.04696918,2626.9,2626.5,2.6651]
[1723338519956,0.04696918,2626.9,2626.3,7.63862]
[1723338520136,0.04696918,2626.9,2626.4,2.66521]
[1723338521975,0.04696918,2626.9,2626.5,2.6651]
[1723338524985,0.04696918,2626.9,2626.3,8.135956]
[1723338525282,0.04696918,2626.9,2626.4,0.8135956]
[1723338526144,0.04696918,2626.9,2626.4,3.4788256]
[1723338534250,0.04696918,2626.9,2626.4,2.66523]
[1723338536282,0.04696918,2626.9,2626.3,2.3081]
[1723338536449,0.04696918,2626.9,2625.8,7.35]
[1723338536450,2.3665,2626.7,2626.2,2.66537]
[1723338536649,0.04703704,2626.8,2626.3,5.01894]
[1723338536878,2.66473,2626.9,2626.3,5.520764]
[1723338537061,0.04700413,2626.7,2626.3,5.520764]
[1723338537262,2.66473,2626.9,2626.3,5.520764]
[1723338537482,0.04698479,2626.6,2626.3,5.520764]
[1723338537784,2.66473,2626.9,2626.3,5.520764]
[1723338537981,0.04696214,2626.5,2626.3,5.520764]
[1723338538181,2.66473,2626.9,2626.4,0.5520764]
[1723338538386,0.04693949,2626.4,2626.3,5.01887]
[1723338538594,5.03115,2627.0,2626.4,2.66517]
[1723338538795,5.66474,2626.9,2626.4,2.66517]
[1723338540986,3.0,2626.9,2626.4,2.66516]
[1723338542056,5.66476,2626.9,2626.4,2.66516]
[1723338544814,3.0,2626.9,2626.4,2.66516]
[1723338544986,3.0,2626.9,2626.4,5.33034]
[1723338546612,3.0,2626.9,2626.4,2.66516]
[1723338547114,3.0,2626.9,2626.3,2.3536]
[1723338547319,5.6648,2626.9,2626.3,2.3536]
[1723338547729,2.665,2626.7,2626.0,2.66556]
[1723338547901,2.66504,2626.6,2626.0,5.33114]
[1723338548784,0.04695885,2626.5,2626.0,5.33114]
[1723338548996,0.04695885,2626.5,2626.1,0.758304]
[1723338549196,0.04695885,2626.5,2626.1,3.423804]
[1723338550016,2.66531,2626.4,2625.9,2.2519]
[1723338550205,2.71231355,2626.3,2625.7,4.91783]
[1723338551296,2.66547,2626.2,2625.7,4.91783]
[1723338551497,2.7123642,2626.2,2625.7,3.16775311]
[1723338551702,2.66558,2626.1,2625.5,3.26270114]
[1723338552001,2.66537,2626.3,2625.7,2.66586]
[1723338552215,0.04682699,2626.0,2625.9,2.66575]
[1723338552408,0.04684889,2626.0,2625.9,4.91765]
[1723338552616,2.66518,2626.5,2625.9,5.676001]
[1723338552813,2.66518,2626.5,2625.9,8.341751]
[1723338553013,0.04675163,2626.4,2626.0,2.66563]
[1723338553490,3.0,2626.5,2626.0,2.66558]
[1723338553689,0.04672898,2626.3,2626.0,2.66558]
[1723338553890,3.0,2626.5,2626.0,3.4997431]
[1723338554148,0.04670633,2626.2,2626.0,3.4997431]
[1723338554292,3.0,2626.5,2626.0,3.4997431]
[1723338554487,0.04668367,2626.1,2626.0,3.4997431]
[1723338555018,3.0,2626.5,2626.0,3.4997431]
[1723338555198,0.04668367,2626.1,2626.0,3.4997431]
[1723338555730,3.0,2626.5,2626.0,3.4997431]
[1723338555891,0.04668367,2626.1,2626.0,3.4997431]
[1723338556098,3.0,2626.5,2626.0,3.4997431]
[1723338556297,3.0,2626.5,2626.1,0.57516431]
[1723338556620,3.0,2626.5,2626.0,2.66558]
[1723338556822,2.3348,2626.6,2626.1,2.66549]
[1723338557123,3.978,2626.6,2626.1,2.66549]
[1723338557296,3.978,2626.6,2626.0,5.33116]
[1723338557491,12.34293,2627.0,2626.4,2.66518]
[1723338557698,5.04296,2627.0,2626.4,2.66518]
[1723338558843,3.0,2626.9,2626.4,2.66518]
[1723338559044,3.978,2626.9,2626.4,2.66518]
[1723338561206,2.3783,2626.7,2626.0,5.01728]
[1723338561424,2.6651,2626.6,2626.0,7.68286]
[1723338561626,2.6651,2626.6,2626.1,2.66554]
[1723338562533,2.3783,2626.7,2626.1,2.66554]
[1723338562719,2.3783,2626.7,2626.1,3.531622]
[1723338563930,0.04687684,2626.6,2626.2,2.66535]
[1723338564134,3.978,2626.9,2626.4,2.6652]
[1723338564430,0.04680544,2626.5,2626.4,2.6652]
[1723338564639,3.978,2626.9,2626.4,3.433425]
[1723338564842,3.978,2626.9,2626.4,2.6652]
[1723338565204,0.04687007,2626.8,2626.3,2.3517]
[1723338565511,2.71172007,2626.8,2626.3,2.3517]
[1723338566039,0.04687007,2626.8,2626.5,2.3517]
[1723338566801,0.04687007,2626.8,2626.5,5.01683]
[1723338567002,0.04687007,2626.8,2626.6,2.66502]
[1723338568032,0.04687007,2626.8,2626.5,2.3517]
[1723338568232,0.04687007,2626.8,2626.5,5.01682]
[1723338569202,0.04687007,2626.8,2626.6,2.66504]
[1723338569401,0.04687007,2626.8,2626.6,2.66497]
[1723338569703,3.978,2627.1,2626.6,3.166637]
[1723338569907,0.04687876,2626.7,2626.6,3.166637]
[1723338570138,3.978,2627.1,2626.6,3.166637]
[1723338570313,0.04693446,2626.7,2626.6,2.66497]
[1723338570639,3.978,2627.1,2626.6,2.66497]
[1723338571134,0.04700239,2627.0,2626.6,2.66497]
[1723338576003,0.04700239,2627.0,2626.7,2.66489]
[1723338576711,0.04697975,2626.9,2626.7,2.66489]
[1723338576928,3.978,2627.2,2626.7,2.66489]
[1723338577102,0.04695711,2626.8,2626.6,2.66497]
[1723338577307,3.978,2627.2,2626.6,2.66497]
[1723338577507,0.04693777,2626.7,2626.6,2.66497]
[1723338577749,3.978,2627.2,2626.6,3.433157]
[1723338578041,0.04693777,2626.7,2626.6,3.433157]
[1723338578200,3.978,2627.2,2626.6,3.433157]
[1723338578402,0.04693777,2626.7,2626.6,3.433157]
[1723338578604,3.978,2627.2,2626.6,3.433157]
[1723338578805,0.04693777,2626.7,2626.6,3.433157]
[1723338579104,0.04693777,2626.7,2626.6,6.098127]
[1723338579302,3.978,2627.2,2626.6,6.098127]
[1723338579536,0.04693446,2626.7,2626.6,6.098127]
[1723338579737,3.978,2627.2,2626.6,6.098127]
[1723338579906,0.04693777,2626.7,2626.6,5.32994]
[1723338580109,3.978,2627.2,2626.6,5.32994]
[1723338580425,0.04700044,2626.7,2626.6,2.66497]
[1723338580615,3.978,2627.2,2626.6,5.32993]
[1723338580818,0.04699713,2626.7,2626.6,2.66496]
[1723338581227,3.978,2627.2,2626.6,6.098102]
[1723338581431,0.04699713,2626.7,2626.6,3.433142]
[1723338581628,3.978,2627.2,2626.6,6.098102]
[1723338582142,0.04708506,2627.1,2626.6,6.098102]
[1723338582749,0.04708506,2627.1,2626.7,3.5098402]
[1723338583058,0.04708506,2627.1,2626.9,2.66467]
[1723338583347,3.0,2627.3,2626.9,2.66467]
[1723338583547,0.04706506,2627.0,2626.9,2.66467]
[1723338583722,3.0,2627.3,2626.9,2.66467]
[1723338583917,0.04706837,2627.0,2626.9,2.66467]
[1723338584117,3.0,2627.3,2627.0,2.66461]
[1723338584530,3.0,2627.4,2627.0,2.66461]
[1723338584720,9.6284,2627.7,2627.2,2.66436]
[1723338585037,3.0,2627.6,2627.2,2.66436]
[1723338585237,3.0,2627.6,2627.2,3.2048696]
[1723338585422,9.6284,2627.7,2627.2,3.2048696]
[1723338586063,12.29233,2627.7,2627.2,3.2048696]
[1723338586741,3.0,2627.6,2627.2,3.2048696]
[1723338590126,5.3284,2627.7,2627.2,3.2048696]
[1723338590463,6.3064,2627.7,2627.2,3.2048696]
[1723338590668,5.3284,2627.7,2627.2,3.2048696]
[1723338590955,6.3064,2627.7,2627.2,3.2048696]
[1723338591159,8.97033,2627.7,2627.2,3.2048696]
[1723338592753,3.0,2627.7,2627.3,0.56639696]
[1723338593750,0.04698972,2627.6,2627.3,0.56639696]
[1723338594543,0.04698972,2627.6,2627.2,3.2048696]
[1723338597267,0.04698972,2627.6,2627.2,2.66436]
[1723338600074,0.04698972,2627.6,2627.1,2.53522038]
[1723338600270,0.04698972,2627.6,2627.1,2.4591]
[1723338600474,0.04698972,2627.6,2627.1,5.12362]
[1723338600764,0.04698972,2627.6,2627.2,2.66442]
[1723338600963,0.04698972,2627.6,2627.4,4.97892]
[1723338601135,3.0,2627.9,2627.4,4.97892]
[1723338601336,0.04755372,2627.8,2627.4,4.97892]
[1723338602038,2.40965372,2627.8,2627.3,3.18428404]
[1723338602238,2.40965372,2627.8,2627.3,3.18423404]
[1723338602466,0.04755372,2627.8,2627.3,5.84849404]
[1723338603337,0.04755372,2627.8,2627.3,3.18422404]
[1723338605953,2.71140372,2627.8,2627.3,0.51996404]
[1723338606154,2.71140372,2627.8,2626.4,2.66519]
[1723338606155,0.978,2627.6,2627.0,2.66461]
[1723338606544,0.04749156,2627.5,2627.0,2.66461]
[1723338607072,2.71162156,2627.5,2626.9,4.97939]
[1723338608160,2.71162156,2627.5,2626.9,5.841622]
[1723338609083,5.37582156,2627.5,2626.9,5.841622]
[1723338609239,2.3621,2627.3,2626.6,2.3147]
[1723338609446,0.978,2627.2,2626.6,2.3147]
[1723338609775,1.02534049,2627.2,2626.6,2.3147]
[1723338610435,2.66459,2627.1,2626.6,2.3147]
[1723338610641,2.66459,2627.1,2626.4,4.97992]
[1723338610937,0.04723807,2627.0,2626.4,5.842245]
[1723338611498,2.6648,2626.9,2626.4,3.177025]
[1723338611649,2.66502,2626.7,2626.1,2.66549]
[1723338611845,5.02716,2626.6,2626.0,2.3147]
[1723338612065,5.07416828,2626.6,2626.1,0.65548823]
[1723338612773,2.40910828,2626.6,2626.1,3.32099823]
[1723338613361,2.40910828,2626.6,2626.2,0.49544783]
[1723338613549,0.04700828,2626.6,2626.2,0.49544783]
[1723338613743,6.00497,2626.8,2626.2,0.49544783]
[1723338613943,0.04695876,2626.7,2626.2,0.49544783]
[1723338614979,0.04695876,2626.7,2626.2,3.16085783]
[1723338616389,2.71196876,2626.7,2626.2,0.49544783]
[1723338617849,0.04695876,2626.7,2626.2,0.49544783]
[1723338618391,0.04695876,2626.7,2626.3,3.04697761]
[1723338618608,2.3621,2626.8,2626.3,3.04697761]
[1723338618768,0.04695135,2626.7,2626.3,3.04697761]
[1723338618967,2.3621,2626.8,2626.3,3.04697761]
[1723338619199,0.0469454,2626.7,2626.3,0.38164761]
[1723338619400,5.02695,2626.8,2626.3,0.38164761]
[1723338619589,0.0469454,2626.7,2626.3,0.38164761]
[1723338619788,2.66497,2626.7,2626.3,0.38164761]
[1723338619992,0.04692871,2626.6,2626.1,2.66547]
[1723338622206,0.04665892,2626.5,2626.1,2.66547]
[1723338622370,2.4412,2626.5,2625.9,2.66571]
[1723338622573,0.04663627,2626.4,2626.0,0.266571]
[1723338623271,2.66505,2626.6,2626.0,0.266571]
[1723338623473,0.04660767,2626.3,2626.0,0.266571]
[1723338623703,2.66505,2626.6,2626.0,0.266571]
[1723338623898,0.04658502,2626.2,2626.0,2.932161]
[1723338624205,6.08421,2626.7,2626.1,0.6575841]
[1723338624369,0.04668157,2626.6,2626.1,0.6575841]
[1723338625900,0.04668157,2626.6,2626.1,3.3231141]
[1723338626206,0.04668157,2626.6,2626.2,2.40035318]
[1723338626410,3.0,2626.8,2626.2,2.40035318]
[1723338626705,0.04669377,2626.7,2626.2,2.40035318]
[1723338627069,0.04669377,2626.7,2626.0,0.266571]
[1723338627070,0.04669377,2626.7,2626.4,2.3242]
[1723338627277,0.04669377,2626.7,2626.5,0.596746]
[1723338627687,0.04667113,2626.6,2626.5,0.596746]
[1723338628179,0.04668955,2626.6,2626.5,3.261866]
[1723338628377,3.0,2626.8,2626.5,3.261866]
[1723338628573,0.0467122,2626.7,2626.5,3.261866]
[1723338628780,3.0,2626.8,2626.5,3.261866]
[1723338629088,0.0467122,2626.7,2626.5,3.261816]
[1723338629291,0.0467122,2626.7,2626.6,3.2236416]
[1723338629611,7.3,2627.4,2626.6,3.2236416]
[1723338629612,10.7192,2627.4,2626.8,2.3242]
[1723338630349,13.38344,2627.4,2626.8,4.98898]
[1723338630799,3.0,2627.3,2626.8,4.98898]
[1723338631315,5.66433,2627.3,2626.8,2.3242]
[1723338631819,8.32873,2627.3,2626.8,2.3242]
[1723338632021,5.66433,2627.3,2626.8,2.3242]
[1723338632517,8.32874,2627.3,2626.8,2.3242]
[1723338632812,5.66433,2627.3,2626.8,2.3242]
[1723338633724,8.32874,2627.3,2626.8,2.3242]
[1723338634175,5.66433,2627.3,2626.8,2.3242]
[1723338638027,3.0,2627.3,2626.8,4.98897]
[1723338638255,3.0,2627.3,2626.8,5.81021316]
[1723338639169,0.08082366,2627.2,2626.8,5.81021316]
[1723338639520,3.0,2627.3,2626.8,5.81021316]
[1723338639720,0.08080231,2627.1,2626.8,5.81021316]
[1723338639950,0.08082366,2627.2,2626.8,5.81021316]
[1723338640267,3.0,2627.3,2626.8,2.3242]
[1723338640423,0.08080792,2627.1,2626.8,2.3242]
[1723338640761,3.0,2627.3,2626.8,2.3242]
[1723338640971,0.08078656,2627.0,2626.8,2.3242]
[1723338641170,0.08076521,2626.9,2626.8,2.3242]
[1723338641377,3.0,2627.3,2626.8,2.3242]
[1723338641544,0.08082927,2627.2,2626.8,2.3242]
[1723338641858,3.0,2627.3,2626.8,4.98897]
[1723338642062,0.08080792,2627.1,2626.8,5.06510135]
[1723338642265,0.08080792,2627.1,2626.9,5.32937]
[1723338642559,3.978,2627.4,2626.9,2.66465]
[1723338642926,0.08087498,2627.3,2626.9,2.66465]
[1723338643132,0.08087498,2627.3,2627.1,2.66453]
[1723338643929,0.08085363,2627.2,2627.1,2.66453]
[1723338644243,6.64202,2627.6,2627.1,2.66453]